bitfinex-derivatives/quotes_ETHF0:USTF0_20250507
["timestamp","ask_amount","ask_price","bid_price","bid_amount"]
[1746637101260,7.72753,1813.4,1813.3,4.32869306]
[1746637101456,7.72753,1813.4,1813.3,4.32865228]
[1746637102360,7.72753,1813.4,1813.3,3.61786531]
[1746637103263,7.72753,1813.4,1813.3,3.61784455]
[1746637103464,7.72753,1813.4,1813.3,0.41004455]
[1746637104758,12.11253,1813.4,1813.3,0.41004455]
[1746637105259,1.10297,1813.0,1812.9,19.82617478]
[1746637105656,1.10297,1813.0,1812.9,20.53648764]
[1746637105963,1.10297,1813.0,1812.9,21.60037478]
[1746637106261,4.70297,1813.0,1812.9,21.60037478]
[1746637106461,6.44517,1813.0,1812.9,21.60037478]
[1746637110065,1.10303,1812.9,1812.8,2.6918]
[1746637110265,2.79553,1812.9,1812.8,2.6918]
[1746637111158,2.79553,1812.9,1812.8,4.3364]
[1746637111159,6.39553,1812.9,1812.8,4.3364]
[1746637113772,1.10316,1812.7,1812.6,0.41289679]
[1746637113965,1.10316,1812.7,1812.6,2.6815]
[1746637114267,4.70316,1812.7,1812.6,2.6815]
[1746637115069,6.38606,1812.7,1812.6,4.38]
[1746637115970,4.70316,1812.7,1812.6,4.38]
[1746637116467,4.70316,1812.7,1812.6,5.08935566]
[1746637116770,4.70316,1812.7,1812.6,4.38]
[1746637118070,4.70316,1812.7,1812.6,4.77572541]
[1746637120368,4.70316,1812.7,1812.6,4.38]
[1746637120565,4.70316,1812.7,1812.6,4.77579007]
[1746637121075,4.70316,1812.7,1812.6,4.77579141]
[1746637123076,4.70316,1812.7,1812.6,1.73259141]
[1746637123376,4.70316,1812.7,1812.6,4.74722699]
[1746637124172,6.36316,1812.7,1812.6,4.74722699]
[1746637125171,6.36316,1812.7,1812.6,4.3513]
[1746637125376,6.36316,1812.7,1812.6,4.74723081]
[1746637127076,6.36316,1812.7,1812.6,4.74744458]
[1746637128270,6.36316,1812.7,1812.6,5.45768716]
[1746637128977,6.36316,1812.7,1812.6,5.45784312]
[1746637129478,4.70316,1812.7,1812.6,5.45784312]
[1746637130882,4.70316,1812.7,1812.6,5.45812838]
[1746637131778,6.00556,1812.7,1812.6,2.44362838]
[1746637132179,7.68836,1812.7,1812.6,2.44362838]
[1746637132579,7.68836,1812.7,1812.6,2.44392354]
[1746637133480,8.96366,1812.7,1812.6,1.10712354]
[1746637134379,8.96366,1812.7,1812.6,1.10735909]
[1746637137272,8.96366,1812.7,1812.6,2.87325909]
[1746637137882,6.38596,1812.7,1812.6,2.87325909]
[1746637138078,6.38596,1812.7,1812.6,2.87343453]
[1746637141182,6.38596,1812.7,1812.6,2.87371005]
[1746637141373,6.38596,1812.7,1812.6,2.87373718]
[1746637142383,6.38596,1812.7,1812.6,2.87382203]
[1746637142878,6.38596,1812.7,1812.6,2.47614258]
[1746637143083,6.38596,1812.7,1812.6,2.87382214]
[1746637144684,6.38596,1812.7,1812.6,1.10792214]
[1746637144885,6.38596,1812.7,1812.6,1.10799184]
[1746637146580,6.38596,1812.7,1812.6,1.10855614]
[1746637148386,6.38596,1812.7,1812.6,1.10565492]
[1746637149987,6.38596,1812.7,1812.6,1.10572538]
[1746637150179,6.38596,1812.7,1812.6,1.10572051]
[1746637150687,6.38596,1812.7,1812.6,4.13442051]
[1746637150879,6.38596,1812.7,1812.6,2.77982051]
[1746637151889,6.38596,1812.7,1812.6,1.10572051]
[1746637153781,6.38596,1812.7,1812.6,0.71024258]
[1746637153985,6.38596,1812.7,1812.6,1.10574916]
[1746637154187,6.38596,1812.7,1812.6,1.10574946]
[1746637154484,1.10328,1812.5,1812.4,2.9975]
[1746637155183,4.70328,1812.5,1812.4,4.10601403]
[1746637155385,4.70328,1812.5,1812.4,4.10598868]
[1746637157788,4.70328,1812.5,1812.4,4.10662307]
[1746637159786,4.70328,1812.5,1812.4,4.10667667]
[1746637161290,6.38448,1812.5,1812.4,4.10667667]
[1746637161488,6.38448,1812.5,1812.4,4.10674225]
[1746637162586,6.38448,1812.5,1812.4,2.43264225]
[1746637162887,6.38448,1812.5,1812.4,1.10924225]
[1746637164896,6.38448,1812.5,1812.4,2.76955136]
[1746637165093,6.38448,1812.5,1812.4,2.76955021]
[1746637168690,6.38448,1812.5,1812.4,2.769538]
[1746637169497,4.70328,1812.5,1812.4,2.769538]
[1746637170597,4.70328,1812.5,1812.4,2.769613]
[1746637172299,4.70328,1812.5,1812.4,1.6606]
[1746637172504,4.70328,1812.5,1812.4,2.76932154]
[1746637174205,4.70328,1812.5,1812.4,2.76872802]
[1746637175209,4.70328,1812.5,1812.4,2.76874543]
[1746637176207,4.70328,1812.5,1812.4,3.87208543]
[1746637176408,4.70328,1812.5,1812.4,2.76883418]
[1746637176709,4.70328,1812.5,1812.4,3.87217418]
[1746637177310,3.6,1812.5,1812.4,3.87217418]
[1746637177511,4.70328,1812.5,1812.4,3.87217418]
[1746637177811,4.70328,1812.5,1812.4,3.87213243]
[1746637179414,4.70328,1812.5,1812.4,2.76879243]
[1746637179710,4.70328,1812.5,1812.4,2.76877177]
[1746637181208,4.70328,1812.5,1812.4,2.37319862]
[1746637181512,4.70328,1812.5,1812.4,2.7688035]
[1746637183207,6.40248,1812.5,1812.4,2.7688035]
[1746637183415,7.71318,1812.5,1812.4,2.76877802]
[1746637183611,7.71318,1812.5,1812.4,3.87211802]
[1746637183914,7.71318,1812.5,1812.4,2.76877802]
[1746637184812,7.71318,1812.5,1812.4,3.87211802]
[1746637185615,7.71318,1812.5,1812.4,2.76877802]
[1746637186816,7.71318,1812.5,1812.4,3.87211802]
[1746637187117,7.71318,1812.5,1812.4,3.87297856]
[1746637187318,4.70328,1812.5,1812.4,3.87297856]
[1746637188821,4.70328,1812.5,1812.4,3.87339805]
[1746637189017,4.70328,1812.5,1812.4,2.77005805]
[1746637189721,4.70328,1812.5,1812.4,3.87339805]
[1746637189910,6.41018,1812.5,1812.4,3.87339805]
[1746637190814,4.70328,1812.5,1812.4,3.87339805]
[1746637192419,4.70328,1812.5,1812.4,3.87340264]
[1746637194321,4.70328,1812.5,1812.4,3.87343632]
[1746637196224,4.70328,1812.5,1812.4,3.87386665]
[1746637197222,6.33588,1812.5,1812.4,3.87386665]
[1746637197525,6.33588,1812.5,1812.4,2.77052665]
[1746637197918,6.33588,1812.5,1812.4,2.77073272]
[1746637198723,6.33588,1812.5,1812.4,3.87407272]
[1746637200720,3.6,1812.5,1812.4,3.87407272]
[1746637200925,4.70328,1812.5,1812.4,2.76394]
[1746637201123,1.10328,1812.5,1812.4,2.76394]
[1746637201311,1.10327,1812.6,1812.5,1.10322]
[1746637201612,1.10327,1812.6,1812.5,4.31102]
[1746637201817,1.10327,1812.6,1812.5,8.52550128]
[1746637202519,11.01688034,1813.3,1813.0,1.10297]
[1746637202721,12.12288315,1813.3,1813.2,4.31065]
[1746637202929,13.22567315,1813.3,1813.2,3.60543916]
[1746637203127,13.22567315,1813.3,1813.2,4.31868128]
[1746637203430,16.82567315,1813.3,1813.2,1.11088128]
[1746637205319,6.32689,1813.3,1813.2,1.11088128]
[1746637205514,11.32689,1813.3,1813.2,1.11088128]
[1746637205721,5.51434,1813.2,1812.7,10.56185778]
[1746637205919,1.1031,1812.8,1812.7,10.56185778]
[1746637206127,1.1031,1812.8,1812.7,7.35405778]
[1746637206826,2.724,1812.8,1812.7,7.35405778]
[1746637207026,2.724,1812.8,1812.7,8.45721778]
[1746637207224,6.324,1812.8,1812.7,7.35405778]
[1746637207722,1.10322,1812.6,1812.5,6.95037]
[1746637208127,4.70322,1812.6,1812.5,6.95037]
[1746637208321,6.42152,1812.6,1812.5,4.5282]
[1746637208526,6.42152,1812.6,1812.5,3.2078]
[1746637208824,6.42152,1812.6,1812.5,4.31108]
[1746637209225,6.42152,1812.6,1812.5,3.2078]
[1746637209724,6.42152,1812.6,1812.5,4.31108]
[1746637209919,6.42152,1812.6,1812.5,3.2078]
[1746637212827,6.42152,1812.6,1812.5,4.9204]
[1746637215728,6.42152,1812.6,1812.5,3.2078]
[1746637215923,2.75745,1813.0,1812.5,13.67508]
[1746637216120,2.75745,1813.0,1812.9,3.2078]
[1746637216121,1.10297,1813.0,1812.9,3.2078]
[1746637216529,1.10303,1812.9,1812.8,4.31087]
[1746637217131,1.10303,1813.0,1812.9,1.10299]
[1746637218231,4.70303,1813.0,1812.9,1.10299]
[1746637219038,3.6,1813.0,1812.9,4.18429]
[1746637219329,3.6,1813.0,1812.9,8.54829]
[1746637219932,4.70297,1813.0,1812.9,8.54829]
[1746637220119,3.6,1813.0,1812.9,8.54829]
[1746637220827,4.70297,1813.0,1812.9,4.18429]
[1746637221032,1.10303,1812.9,1812.8,3.2078]
[1746637221231,2.48203,1812.9,1812.8,4.3109]
[1746637221422,3.6,1813.0,1812.9,1.10303]
[1746637221826,3.6,1813.0,1812.9,2.86523]
[1746637222325,4.70301,1813.0,1812.9,2.86523]
[1746637222727,4.70301,1813.0,1812.9,1.7622]
[1746637222931,4.70301,1813.0,1812.9,2.86523]
[1746637224335,3.6,1813.0,1812.9,2.86523]
[1746637225427,4.70297,1813.0,1812.9,2.86523]
[1746637229136,3.6,1813.0,1812.9,2.86523]
[1746637229434,4.70297,1813.0,1812.9,2.86523]
[1746637230235,4.70297,1813.0,1812.9,4.24823]
[1746637231230,3.6,1813.0,1812.8,4.5041]
[1746637231435,1.1031,1812.8,1812.7,1.3898]
[1746637232135,4.7031,1812.8,1812.7,1.3898]
[1746637232339,6.3736,1812.8,1812.7,1.3898]
[1746637233240,1.10316,1812.7,1812.6,3.2078]
[1746637233537,2.77366,1812.7,1812.6,3.2078]
[1746637234129,6.37366,1812.7,1812.6,3.2078]
[1746637234336,6.37366,1812.7,1812.6,4.31102]
[1746637234536,6.37366,1812.7,1812.6,3.2078]
[1746637234941,6.37366,1812.7,1812.6,4.31102]
[1746637235126,2.77366,1812.7,1812.6,6.3432]
[1746637235838,1.10328,1812.6,1812.5,1.10327]
[1746637236137,2.72238,1812.6,1812.5,1.10327]
[1746637236639,1.10328,1812.5,1812.4,7.4783]
[1746637237536,1.10328,1812.5,1812.4,6.375]
[1746637237742,2.72238,1812.5,1812.4,4.5976]
[1746637238338,6.32238,1812.5,1812.4,4.5976]
[1746637238741,6.32238,1812.5,1812.4,5.70094]
[1746637238932,6.32238,1812.5,1812.4,4.5976]
[1746637241142,6.32238,1812.5,1812.4,6.2011]
[1746637241343,2.72238,1812.5,1812.4,7.30444]
[1746637241540,2.72238,1812.5,1812.4,6.2011]
[1746637241941,2.72238,1812.5,1812.4,4.5976]
[1746637242444,2.72238,1812.5,1812.4,3.2078]
[1746637243234,6.32238,1812.5,1812.4,3.2078]
[1746637249051,0.84095309,1812.5,1812.4,9.31114]
[1746637249247,1.1031,1812.9,1812.8,1.10306]
[1746637249442,1.1031,1812.9,1812.8,4.31086]
[1746637249843,1.1031,1812.9,1812.8,6.07876]
[1746637250452,2.80782,1813.0,1812.9,1.10303]
[1746637250754,2.80782,1813.0,1812.9,2.87763]
[1746637250950,1.10302,1813.0,1812.9,2.87763]
[1746637251144,4.70302,1813.0,1812.9,2.87763]
[1746637252549,3.6,1813.0,1812.9,2.87763]
[1746637252749,4.70297,1813.0,1812.9,2.87763]
[1746637253049,4.358,1813.9,1813.4,1.1027]
[1746637253351,1.10273,1813.4,1813.3,4.31055]
[1746637253952,1.10273,1813.4,1813.3,6.00485]
[1746637256453,1.10273,1813.4,1813.3,6.44090425]
[1746637262258,1.10273,1813.4,1813.3,3.2078]
[1746637262956,1.10273,1813.4,1813.0,1.10296]
[1746637262957,1.10297,1813.1,1813.0,1.10296]
[1746637263158,1.10297,1813.1,1813.0,5.60776]
[1746637263458,1.10297,1813.1,1813.0,7.31356]
[1746637265360,1.10297,1813.1,1813.0,7.7550542]
[1746637265858,5.9265,1813.5,1813.0,7.7550542]
[1746637265859,5.964,1813.9,1813.6,1.10257]
[1746637266160,2.86944,1813.8,1813.7,3.2078]
[1746637266361,1.7669,1813.8,1813.5,8.57402]
[1746637266562,1.10261,1813.6,1813.5,3.2078]
[1746637266759,1.7669,1813.7,1813.3,7.30454]
[1746637266760,1.10273,1813.4,1813.3,7.30454]
[1746637267455,3.6,1813.6,1813.3,6.2018]
[1746637267662,4.70263,1813.6,1813.5,4.31047]
[1746637267865,3.6,1813.6,1813.5,4.31047]
[1746637268361,4.70261,1813.6,1813.5,4.31047]
[1746637268760,4.70261,1813.6,1813.5,1.10267]
[1746637269061,4.70261,1813.6,1813.5,4.31047]
[1746637270362,4.70261,1813.6,1813.5,1.10267]
[1746637270865,6.38061,1813.6,1813.5,1.10267]
[1746637271663,5.278,1813.6,1813.5,4.31047]
[1746637271860,3.6,1813.6,1813.5,5.62507]
[1746637272363,1.10255,1813.7,1813.6,1.10261]
[1746637272558,1.10255,1813.7,1813.6,2.86411]
[1746637273257,4.70255,1813.7,1813.6,2.86411]
[1746637278065,3.6,1813.7,1813.6,2.86411]
[1746637278555,0.39219872,1813.7,1813.6,2.86411]
[1746637279263,2.87084,1813.9,1813.8,1.10249]
[1746637279464,2.87084,1813.9,1813.8,4.31029]
[1746637280266,6.47084,1813.9,1813.8,4.31029]
[1746637280567,6.47084,1813.9,1813.8,3.2078]
[1746637281063,1.10255,1813.7,1813.6,1.10259]
[1746637281567,1.10273,1813.4,1813.3,5.70005]
[1746637281763,1.10273,1813.4,1813.3,6.40509491]
[1746637282366,2.71173,1813.4,1813.3,6.40509491]
[1746637282566,2.71173,1813.4,1813.3,8.14189491]
[1746637283070,2.71173,1813.4,1813.3,3.91284491]
[1746637283367,6.31173,1813.4,1813.3,3.91284491]
[1746637283561,11.31173,1813.4,1813.3,3.91284491]
[1746637283971,11.31173,1813.4,1813.3,3.2078]
[1746637284168,6.31173,1813.4,1813.3,3.9129894]
[1746637284571,6.31173,1813.4,1813.3,3.91306002]
[1746637285365,6.31173,1813.4,1813.3,3.2078]
[1746637286175,1.10291,1813.1,1813.0,6.1438691]
[1746637286474,1.10291,1813.2,1813.1,1.10289]
[1746637286671,2.77431,1813.2,1813.1,0.70494616]
[1746637287274,6.37431,1813.2,1813.1,0.70494616]
[1746637288773,18.93211,1813.2,1813.1,6.16e-06]
[1746637289374,2.75731,1813.1,1812.7,3.2078]
[1746637289568,2.77443,1813.0,1812.9,1.10301]
[1746637289773,1.6714,1813.0,1812.9,6.04061]
[1746637289975,1.10296,1813.1,1813.0,1.10297]
[1746637290275,1.10296,1813.1,1813.0,1.7298]
[1746637290477,2.85796,1813.1,1813.0,1.7298]
[1746637291182,6.45796,1813.1,1813.0,1.7298]
[1746637291682,1.10297,1813.0,1812.9,3.2078]
[1746637291983,2.85797,1813.0,1812.9,3.2078]
[1746637292185,6.45797,1813.0,1812.9,3.2078]
[1746637294895,1.10316,1812.7,1812.6,2.9174]
[1746637295195,1.10316,1812.7,1812.6,4.02062]
[1746637295382,1.10316,1812.7,1812.6,2.9174]
[1746637296092,1.10316,1812.7,1812.5,1.3751]
[1746637296093,1.10322,1812.6,1812.5,1.3751]
[1746637296289,4.19832,1812.6,1812.5,1.3751]
[1746637296490,4.19832,1812.6,1812.5,4.5829]
[1746637297197,7.79832,1812.6,1812.5,4.5829]
[1746637297490,7.79832,1812.6,1812.3,8.66219]
[1746637297491,1.10334,1812.4,1812.3,8.66219]
[1746637297794,1.10334,1812.4,1812.3,11.76139]
[1746637299398,1.10334,1812.4,1812.3,10.658]
[1746637299597,1.10334,1812.4,1812.3,11.7614]
[1746637301601,1.10331,1812.5,1812.4,1.10327]
[1746637301901,1.10331,1812.5,1812.4,2.84947]
[1746637302402,4.70331,1812.5,1812.4,2.84947]
[1746637302999,4.70331,1812.5,1812.4,1.7462]
[1746637303400,1.10334,1812.4,1812.3,1.3751]
[1746637303595,4.13974,1812.4,1812.3,1.3751]
[1746637303797,4.13974,1812.4,1812.3,2.4785]
[1746637304100,4.13974,1812.4,1812.3,1.3751]
[1746637304401,7.73974,1812.4,1812.3,1.3751]
[1746637304593,7.73974,1812.4,1812.3,2.4785]
[1746637304796,7.73974,1812.4,1812.3,1.3751]
[1746637305099,1.1034,1812.3,1812.2,4.01561]
[1746637305304,2.8541,1812.3,1812.2,4.01561]
[1746637306804,2.8541,1812.3,1812.2,4.01566]
[1746637307304,6.4541,1812.3,1812.2,4.01566]
[1746637309809,4.7034,1812.3,1812.2,4.01566]
[1746637312005,6.4429,1812.3,1812.2,4.01566]
[1746637314108,2.8429,1812.3,1812.2,4.01566]
[1746637316111,6.4429,1812.3,1812.2,4.01566]
[1746637316709,4.7034,1812.3,1812.2,4.01566]
[1746637318312,6.4311,1812.3,1812.2,4.01566]
[1746637319105,1.10346,1812.2,1812.1,4.98794625]
[1746637319311,2.83116,1812.2,1812.1,4.98794625]
[1746637319610,2.83116,1812.2,1812.1,6.09146625]
[1746637319910,2.83116,1812.2,1812.1,7.77826625]
[1746637320112,2.83116,1812.2,1812.1,6.67474625]
[1746637320312,6.43116,1812.2,1812.1,6.67474625]
[1746637324012,6.43116,1812.2,1812.1,7.77826625]
[1746637324218,6.43116,1812.2,1812.1,6.67474625]
[1746637324518,6.43116,1812.2,1812.1,7.77826625]
[1746637325023,6.43116,1812.2,1812.1,6.67474625]
[1746637325210,6.43116,1812.2,1812.1,7.77826625]
[1746637325613,6.43116,1812.2,1812.1,6.67474625]
[1746637325915,7.73586,1812.2,1812.1,3.2078]
[1746637327309,7.73586,1812.2,1812.0,2.36867]
[1746637327310,1.10358,1812.0,1811.9,1.2976]
[1746637327516,1.1037,1811.8,1811.7,6.1083]
[1746637327923,1.10365,1812.0,1811.7,6.1083]
[1746637328111,1.10362,1812.0,1811.9,1.10359]
[1746637328312,1.10362,1812.0,1811.9,4.31139]
[1746637328521,1.10362,1812.0,1811.9,5.58549]
[1746637329112,4.70362,1812.0,1811.9,5.58549]
[1746637329520,4.70362,1812.0,1811.9,4.4819]
[1746637330819,4.70362,1812.0,1811.9,3.2078]
[1746637331219,6.37752,1812.0,1811.9,3.2078]
[1746637331918,1.10364,1811.9,1811.8,3.11385592]
[1746637334824,1.10364,1811.9,1811.8,2.01015592]
[1746637335025,1.10364,1811.9,1811.8,3.11385592]
[1746637337932,3.2078,1812.4,1811.8,6.35615592]
[1746637338224,1.10345,1812.3,1812.2,1.1034]
[1746637338421,1.10338,1812.4,1812.3,1.1034]
[1746637338822,1.10338,1812.4,1812.3,2.837]
[1746637339225,4.70338,1812.4,1812.3,2.837]
[1746637340529,4.70338,1812.4,1812.3,1.7336]
[1746637340928,1.1034,1812.3,1812.2,2.39755]
[1746637341224,4.0526,1812.3,1812.2,2.39755]
[1746637341623,4.0526,1812.3,1812.2,4.07025]
[1746637342825,4.70339,1812.4,1812.3,1.1034]
[1746637343124,1.10339,1812.4,1812.3,2.7761]
[1746637344523,3.2078,1812.7,1812.3,1.6727]
[1746637344728,1.10321,1812.7,1812.6,1.10316]
[1746637345230,4.70321,1812.7,1812.6,2.993]
[1746637345429,6.44691,1812.7,1812.6,1.2489]
[1746637346419,1.10322,1812.6,1812.5,3.2078]
[1746637346619,1.10328,1812.5,1812.4,8.44132]
[1746637346819,2.40528,1812.5,1812.4,8.44132]
[1746637347220,4.14898,1812.5,1812.4,8.44132]
[1746637348832,1.10334,1812.4,1812.3,3.2078]
[1746637349034,2.70734,1812.4,1812.3,3.2078]
[1746637349329,6.30734,1812.4,1812.3,3.2078]
[1746637352029,1.10346,1812.2,1812.1,4.345]
[1746637352227,1.10352,1812.1,1812.0,7.31698]
[1746637352427,1.10352,1812.1,1812.0,6.2134]
[1746637353134,6.43092,1812.1,1812.0,7.31698]
[1746637353334,6.43092,1812.1,1812.0,6.2134]
[1746637354639,6.43092,1812.1,1812.0,7.31698]
[1746637354932,4.70352,1812.1,1812.0,7.31698]
[1746637355132,1.10352,1812.1,1812.0,7.31698]
[1746637356136,1.10352,1812.1,1812.0,6.2134]
[1746637356629,2.80072,1812.1,1812.0,6.2134]
[1746637357035,2.80072,1812.1,1812.0,3.0056]
[1746637357337,6.40072,1812.1,1812.0,4.10918]
[1746637359731,6.40072,1812.1,1812.0,3.0056]
[1746637359932,6.40072,1812.1,1812.0,1.2555]
[1746637363839,6.40072,1812.1,1812.0,2.35908]
[1746637364935,6.40072,1812.1,1812.0,1.2555]
[1746637365634,6.40072,1812.1,1812.0,2.35908]
[1746637367339,4.70352,1812.1,1812.0,3.96318]
[1746637367743,6.35885,1812.1,1811.8,3.2078]
[1746637367941,1.10364,1811.9,1811.8,4.31144]
[1746637368142,1.10364,1811.9,1811.8,5.91554]
[1746637378349,1.10364,1811.9,1811.8,5.9156]
[1746637379049,2.78794,1811.9,1811.8,5.9156]
[1746637380855,1.10364,1811.9,1811.8,5.9156]
[1746637382452,2.75834,1811.9,1811.8,5.9156]
[1746637387057,2.75834,1811.9,1811.8,4.8119]
[1746637387356,4.08864,1811.9,1811.8,4.8119]
[1746637387860,4.08864,1811.9,1811.8,5.9156]
[1746637389664,4.08864,1811.9,1811.8,4.8119]
[1746637392856,1.10355,1812.2,1812.1,1.10348]
[1746637393463,1.10355,1812.2,1812.1,2.86348]
[1746637394155,4.31113,1812.5,1812.4,1.10334]
[1746637394464,1.10333,1812.5,1812.4,1.530723]
[1746637394869,1.10333,1812.5,1812.4,4.540523]
[1746637395265,1.10333,1812.5,1812.4,8.140523]
[1746637395672,1.10333,1812.5,1812.4,7.71314]
[1746637396473,1.10333,1812.5,1812.4,8.14229088]
[1746637396665,1.10326,1812.6,1812.5,1.10323]
[1746637396859,1.10326,1812.6,1812.5,3.28918088]
[1746637397067,18.54243147,1813.0,1812.5,3.28918088]
[1746637397068,13.79084412,1813.2,1812.6,2.75805]
[1746637397270,1.10303,1812.9,1812.8,4.31086]
[1746637397570,1.10302,1813.0,1812.9,1.10302]
[1746637397766,1.10295,1813.1,1813.0,1.10297]
[1746637397975,11.03368412,1813.2,1813.0,1.15128601]
[1746637398164,13.86073412,1813.2,1813.1,2.90727344]
[1746637398774,11.03368412,1813.2,1813.1,4.4440489]
[1746637398971,12.13653412,1813.2,1813.1,4.4440105]
[1746637399171,12.13653412,1813.2,1813.1,4.00832617]
[1746637399865,12.13653412,1813.2,1813.1,4.00643518]
[1746637400071,1.10285,1813.2,1813.1,4.00643518]
[1746637401076,1.10285,1813.2,1813.1,4.00554473]
[1746637401276,1.10285,1813.2,1813.1,0.42707621]
[1746637401969,2.76915,1813.2,1813.1,0.42707621]
[1746637402173,1.10291,1813.1,1813.0,1.10296]
[1746637402477,1.10291,1813.1,1813.0,3.26931724]
[1746637402674,1.10291,1813.1,1813.0,2.16634616]
[1746637403075,1.10291,1813.1,1813.0,2.16636489]
[1746637404279,1.10291,1813.1,1813.0,2.16610306]
[1746637405172,1.10291,1813.1,1813.0,0.42610306]
[1746637406081,1.10297,1813.0,1812.9,1.3751]
[1746637406268,2.41647,1813.0,1812.9,0.4270043]
[1746637406474,2.75762,1812.9,1812.4,11.9058]
[1746637406674,1.1032,1812.7,1812.6,1.10319]
[1746637406875,1.1032,1812.7,1812.6,3.71352461]
[1746637407785,1.1032,1812.7,1812.6,3.71340536]
[1746637408478,1.1032,1812.7,1812.6,3.71348514]
[1746637408883,1.1032,1812.7,1812.6,3.71351514]
[1746637409183,1.1032,1812.7,1812.6,3.71350108]
[1746637409688,1.1032,1812.7,1812.6,3.71351118]
[1746637410482,1.1032,1812.7,1812.6,2.61029118]
[1746637410679,1.1032,1812.7,1812.6,3.71351118]
[1746637411078,1.1032,1812.7,1812.6,3.7135437]
[1746637411582,1.1032,1812.7,1812.6,2.6103237]
[1746637411884,1.1032,1812.7,1812.6,3.7135437]
[1746637412285,1.1032,1812.7,1812.6,2.6103237]
[1746637412586,1.1032,1812.7,1812.6,2.18315805]
[1746637413088,1.1032,1812.7,1812.6,3.28637805]
[1746637413387,1.1032,1812.7,1812.6,2.18315805]
[1746637413586,1.1032,1812.7,1812.6,2.61043969]
[1746637414086,1.1032,1812.7,1812.6,3.71365969]
[1746637414289,1.1032,1812.7,1812.6,3.71370017]
[1746637414784,1.1032,1812.7,1812.6,3.71368941]
[1746637415988,1.1032,1812.7,1812.6,3.71372386]
[1746637416187,1.1032,1812.7,1812.6,4.43129874]
[1746637416791,1.1032,1812.7,1812.6,3.7137832]
[1746637416980,1.1032,1812.7,1812.6,3.71375322]
[1746637417492,1.1032,1812.7,1812.6,3.7136147]
[1746637418392,1.1032,1812.7,1812.6,3.71379494]
[1746637419192,1.1032,1812.7,1812.6,3.28637805]
[1746637419391,1.1032,1812.7,1812.6,3.71404511]
[1746637420181,2.8219,1812.7,1812.6,3.71404511]
[1746637420383,2.8219,1812.7,1812.6,3.71424919]
[1746637420588,2.8219,1812.7,1812.6,6.92204919]
[1746637420996,2.8219,1812.7,1812.6,6.92202595]
[1746637421491,2.8219,1812.7,1812.6,6.92234184]
[1746637422292,2.8219,1812.7,1812.6,3.71454184]
[1746637422495,2.8219,1812.7,1812.6,6.92234184]
[1746637422692,2.8219,1812.7,1812.6,6.92268939]
[1746637422886,2.8219,1812.7,1812.6,6.92271517]
[1746637423995,2.8219,1812.7,1812.6,6.92287258]
[1746637425386,2.8219,1812.7,1812.6,6.49417805]
[1746637426100,2.8219,1812.7,1812.6,6.92313798]
[1746637426292,2.8219,1812.7,1812.6,6.92313749]
[1746637427392,1.1031,1812.9,1812.8,1.10303]
[1746637427694,2.85582,1813.0,1812.9,1.10303]
[1746637427899,2.85582,1813.0,1812.9,4.44702806]
[1746637428198,2.85582,1813.0,1812.9,8.04702806]
[1746637429097,2.85582,1813.0,1812.9,8.04702138]
[1746637430103,2.85582,1813.0,1812.9,11.25482138]
[1746637430289,1.10297,1813.1,1813.0,1.10294]
[1746637430495,1.10297,1813.1,1813.0,5.21508263]
[1746637431296,1.10297,1813.1,1813.0,5.21562633]
[1746637432099,1.10297,1813.1,1813.0,4.06494]
[1746637432294,1.10297,1813.1,1813.0,5.2154838]
[1746637432993,1.10297,1813.1,1813.0,5.21532478]
[1746637433194,1.10297,1813.1,1813.0,4.06494]
[1746637433402,1.10297,1813.1,1813.0,5.21533303]
[1746637434900,1.10297,1813.1,1813.0,5.21540449]
[1746637435802,1.10297,1813.1,1813.0,5.21536592]
[1746637437303,1.10297,1813.1,1813.0,5.21517158]
[1746637437707,2.79187,1813.1,1813.0,5.21517158]
[1746637440303,1.6889,1813.1,1813.0,5.21517158]
[1746637440803,1.10291,1813.1,1813.0,5.21517158]
[1746637441098,1.10291,1813.1,1813.0,8.81499843]
[1746637442600,1.10291,1813.1,1813.0,8.81507202]
[1746637443507,7.87271,1813.1,1813.0,4.75013202]
[1746637443707,7.87271,1813.1,1813.0,4.02935625]
[1746637444104,11.47271,1813.1,1813.0,0.42935625]
[1746637444502,1.10316,1812.7,1812.6,8.46893815]
[1746637444798,1.10316,1812.7,1812.6,9.60377848]
[1746637445493,2.39516,1812.7,1812.6,9.60377848]
[1746637445705,2.39516,1812.7,1812.6,2.23805033]
[1746637446209,2.39516,1812.7,1812.6,1.51610155]
[1746637446607,1.10316,1812.7,1812.6,3.18420155]
[1746637447907,2.81156,1812.7,1812.6,3.18420155]
[1746637448311,2.81156,1812.7,1812.6,0.41289155]
[1746637452718,1.10322,1812.6,1812.5,3.80056]
[1746637452913,2.80602,1812.6,1812.5,4.21210239]
[1746637453214,2.80602,1812.6,1812.5,7.81210239]
[1746637454714,2.80602,1812.6,1812.5,7.81201455]
[1746637455315,2.80602,1812.6,1812.5,4.21201455]
[1746637456217,2.80602,1812.6,1812.5,7.81201455]
[1746637456414,2.80602,1812.6,1812.5,11.01981455]
[1746637456615,1.1032,1812.7,1812.6,1.10316]
[1746637456914,1.1032,1812.7,1812.6,3.26331455]
[1746637458915,1.1032,1812.7,1812.6,3.2631371]
[1746637461116,2.7622,1812.7,1812.6,3.2631371]
[1746637462622,2.7622,1812.7,1812.6,0.4112771]
[1746637463323,4.0234,1812.7,1812.6,0.4112771]
[1746637464215,1.10322,1812.6,1812.5,3.2078]
[1746637464416,4.09582,1812.6,1812.5,3.61954974]
[1746637464617,4.09582,1812.6,1812.5,3.61956211]
[1746637469932,4.09582,1812.6,1812.5,0.41176211]
[1746637470333,1.10334,1812.4,1812.3,2.996]
[1746637470532,1.10334,1812.4,1812.3,3.4078313]
[1746637471030,1.10334,1812.4,1812.3,4.5112313]